fUST/lending_fUST_20250312
["ID","MTS","AMOUNT","RATE_DAILY","PERIOD"]
[355927291,1741716724863,-500.0,0.00024109,2]
[355927292,1741716724872,-9446.84,0.00024109,2]
[355927293,1741716724881,-500.0,0.00024109,2]
[355927294,1741716724890,-2814.21,0.00024109,2]
[355927295,1741716724899,-3691.0,0.00024109,2]
[355927296,1741716724909,-1202.86,0.00024109,2]
[355927297,1741716724919,-500.0,0.00024109,2]
[355927298,1741716724928,-587.88,0.00024109,2]
[355927299,1741716724937,-869.52,0.00024109,2]
[355927300,1741716724947,-580.98615911,0.00024109,2]
[355927301,1741716724955,-500.0,0.00024109,2]
[355927302,1741716724964,-3579.07,0.00024109,2]
[355927303,1741716724974,-299174.99,0.00024109,2]
[355927304,1741716724984,-2945.67,0.00024109,2]
[355927305,1741716724993,-535.75144631,0.00024109,2]
[355927306,1741716725003,-880.17,0.00024109,2]
[355927307,1741716725012,-500.0,0.00024109,2]
[355927308,1741716725021,-2983.87,0.00024109,2]
[355927309,1741716725031,-500.0,0.00024109,2]
[355927310,1741716725042,-500.0,0.00024109,2]
[355927311,1741716725051,-11349.89,0.00024109,2]
[355927312,1741716725061,-500.0,0.00024109,2]
[355927313,1741716725072,-500.0,0.00024109,2]
[355927314,1741716725082,-500.0,0.00024109,2]
[355927315,1741716725093,-811.32,0.00024109,2]
[355927316,1741716725102,-500.0,0.00024109,2]
[355927317,1741716725112,-500.0,0.00024109,2]
[355927318,1741716725124,-500.0,0.00024109,2]
[355927319,1741716725133,-6411.78,0.00024109,2]
[355927320,1741716725142,-1407.74,0.00024109,2]
[355927321,1741716725151,-500.0,0.00024109,2]
[355927322,1741716725161,-500.0,0.00024109,2]
[355927323,1741716725171,-2234.33,0.00024109,2]
[355927324,1741716725180,-1914.64,0.00024109,2]
[355927325,1741716725190,-500.0,0.00024109,2]
[355927326,1741716725199,-500.0,0.00024109,2]
[355927327,1741716725208,-516.47,0.00024109,2]
[355927328,1741716725218,-1299.12,0.00024109,2]
[355927329,1741716725227,-2072.12,0.00024109,2]
[355927330,1741716725236,-834.53,0.00024109,2]
[355927331,1741716725245,-3763.62,0.00024109,2]
[355927332,1741716725255,-500.0,0.00024109,2]
[355927333,1741716725264,-551.18,0.00024109,2]
[355927334,1741716725275,-3522.52,0.00024109,2]
[355927335,1741716725284,-500.0,0.00024109,2]
[355927336,1741716725294,-500.0,0.00024109,2]
[355927337,1741716725303,-658.55,0.00024109,2]
[355927338,1741716725313,-500.0,0.00024109,2]
[355927339,1741716725324,-500.0,0.00024109,2]
[355927340,1741716725333,-583.5,0.00024109,2]
[355927341,1741716725343,-1515.05,0.00024109,2]
[355927342,1741716725352,-13694.52,0.00024109,2]
[355927343,1741716725362,-561.85777182,0.00024109,2]
[355927344,1741716725371,-2033.78,0.00024109,2]
[355927345,1741716725380,-2419.19,0.00024109,2]
[355927346,1741716725390,-1260.46,0.00024109,2]
[355927347,1741716725399,-500.0,0.00024109,2]
[355927348,1741716725408,-1096.01,0.00024109,7]
[355927349,1741716725417,-947.72,0.00024109,2]
[355927350,1741716725427,-567.06,0.00024109,2]
[355927351,1741716725436,-967.47,0.00024109,2]
[355927352,1741716725445,-1213.75,0.00024109,2]
[355927353,1741716725454,-2759.01,0.00024109,2]
[355927354,1741716725463,-1574.32,0.00024109,2]
[355927355,1741716725473,-326.10696375,0.00024109,2]
[355927356,1741716725482,-500.0,0.00024109,2]
[355927357,1741716725492,-1492.0,0.00024109,2]
[355927358,1741716725501,-2494.97,0.00024109,2]
[355927359,1741716725511,-371.66932506,0.00024109,2]
[355927360,1741716725520,-500.0,0.00024109,2]
[355927361,1741716725530,-10869.8,0.00024109,2]
[355927362,1741716725540,-500.0,0.00024109,2]
[355927363,1741716725549,-724.88,0.00024109,2]
[355927364,1741716725558,-500.0,0.00024109,2]
[355927365,1741716725568,-500.0,0.00024109,2]
[355927366,1741716725577,-500.0,0.00024109,2]
[355927367,1741716725587,-537.03,0.00024109,2]
[355927368,1741716725596,-500.0,0.00024109,2]
[355927369,1741716725606,-500.0,0.00024109,2]
[355927370,1741716725615,-751.32,0.00024109,2]
[355927371,1741716725625,-1067.93,0.00024109,2]
[355927372,1741716725635,-500.0,0.00024109,2]
[355927373,1741716725645,-725.1,0.00024109,2]
[355927374,1741716725655,-500.0,0.00024109,2]
[355927375,1741716725664,-500.0,0.00024109,2]
[355927376,1741716725673,-5830.62,0.00024109,2]
[355927377,1741716725682,-500.0,0.00024109,2]
[355927378,1741716725692,-13663.82,0.00024109,2]
[355927379,1741716725701,-8586.74,0.00024109,2]
[355927380,1741716725710,-500.0,0.00024109,2]
[355927381,1741716725720,-500.0,0.00024109,2]
[355927382,1741716725729,-500.0,0.00024109,2]
[355927383,1741716725739,-500.0,0.00024109,2]
[355927384,1741716725749,-1052.85,0.00024109,2]
[355927385,1741716725758,-710.74,0.00024109,2]
[355927386,1741716725767,-500.0,0.00024109,2]
[355927387,1741716725777,-1490.39,0.00024109,2]
[355927388,1741716725786,-562.29,0.00024109,2]
[355927389,1741716725795,-2664.47,0.00024109,2]
[355927390,1741716725805,-760.33,0.00024109,2]
[355927391,1741716725814,-500.0,0.00024109,2]
[355927392,1741716725825,-9046.62,0.00024109,2]
[355927393,1741716725834,-500.0,0.00024109,2]
[355927394,1741716725844,-683.04,0.00024109,2]
[355927395,1741716725853,-3131.63,0.00024109,2]
[355927396,1741716725863,-1176.59,0.00024109,2]
[355927397,1741716725873,-1428.31,0.00024109,2]
[355927398,1741716725882,-1006.02,0.00024109,2]
[355927399,1741716725891,-1287.74,0.00024109,2]
[355927400,1741716725901,-2049.22,0.00024109,2]
[355927401,1741716725910,-500.0,0.00024109,2]
[355927402,1741716725919,-1569.12,0.00024109,2]
[355927403,1741716725929,-500.0,0.00024109,2]
[355927404,1741716725938,-1105.59,0.00024109,2]
[355927405,1741716725948,-1986.41,0.00024109,2]
[355927406,1741716725957,-633.94,0.00024109,2]
[355927407,1741716725967,-701.01,0.00024109,2]
[355927408,1741716725977,-565.76553262,0.00024109,2]
[355927409,1741716725986,-1151.53,0.00024109,2]
[355927410,1741716725995,-500.0,0.00024109,2]
[355927411,1741716726004,-1137.57,0.00024109,2]
[355927412,1741716726014,-500.0,0.00024109,2]
[355927413,1741716726023,-500.0,0.00024109,2]
[355927414,1741716726032,-2208.74,0.00024109,2]
[355927415,1741716726045,-500.0,0.00024109,2]
[355927416,1741716726054,-500.0,0.00024109,2]
[355927417,1741716726064,-3979.18,0.00024109,2]
[355927418,1741716726075,-779.1,0.00024109,2]
[355927419,1741716726084,-500.0,0.00024109,2]
[355927420,1741716726095,-16462.07,0.00024109,2]
[355927421,1741716726104,-277.15114924,0.00024164,2]
[355927422,1741716726113,-186.0,0.00024164,2]
[355927423,1741716726124,-177.130607,0.00024238,7]
[355927424,1741716726133,-265.0,0.00024239,2]
[355927425,1741716726143,-250.0,0.00024239,2]
[355927426,1741716726152,-277.15114924,0.00024274,2]
[355927427,1741716726162,-941.67561231,0.00024368,2]
[355927428,1741716726171,-11966.15550212,0.00024382,2]
[355927429,1741716726181,-500.0,0.00024383,2]
[355927430,1741716726190,-1340.89,0.00024383,2]
[355927431,1741716726199,-1201.45,0.00024383,2]
[355927432,1741716726208,-590.28,0.00024383,2]
[355927433,1741716726218,-500.0,0.00024383,2]
[355927434,1741716726227,-500.0,0.00024383,2]
[355927435,1741716726237,-500.0,0.00024383,2]
[355927436,1741716726246,-500.0,0.00024383,2]
[355927437,1741716726255,-500.0,0.00024383,2]
[355927438,1741716726264,-500.0,0.00024383,2]
[355927439,1741716726274,-513.85,0.00024383,2]
[355927440,1741716726283,-1074.73,0.00024383,2]
[355927441,1741716726292,-182.19363327,0.00024383,2]
[355927442,1741716726301,-500.0,0.00024383,2]
[355927443,1741716726311,-500.0,0.00024383,2]
[355927444,1741716726322,-500.0,0.00024383,2]
[355927445,1741716726332,-500.0,0.00024383,2]
[355927446,1741716726341,-581.53,0.00024383,2]
[355927447,1741716726351,-500.0,0.00024383,2]
[355927448,1741716726360,-500.0,0.00024383,2]
[355927449,1741716726369,-500.0,0.00024383,2]
[355927450,1741716726379,-500.0,0.00024383,2]
[355927451,1741716726389,-809.72,0.00024383,2]
[355927452,1741716726398,-500.0,0.00024383,2]
[355927453,1741716726407,-1428.98,0.00024383,2]
[355927454,1741716726416,-500.0,0.00024383,2]
[355927455,1741716726426,-1443.03,0.00024383,2]
[355927456,1741716726436,-500.0,0.00024383,2]
[355927457,1741716726445,-606.78,0.00024383,2]
[355927458,1741716726454,-500.0,0.00024383,2]
[355927459,1741716726463,-500.0,0.00024383,2]
[355927460,1741716726472,-500.0,0.00024383,2]
[355927461,1741716726482,-500.0,0.00024383,2]
[355927462,1741716726491,-500.0,0.00024383,2]
[355927463,1741716726500,-500.0,0.00024383,2]
[355927464,1741716726510,-500.0,0.00024383,2]
[355927465,1741716726519,-500.0,0.00024383,2]
[355927466,1741716726529,-500.0,0.00024383,2]
[355927467,1741716726538,-1247.36,0.00024383,2]
[355927468,1741716726547,-218.63950533,0.00024383,2]
[355927469,1741716726557,-500.0,0.00024383,2]
[355927470,1741716726566,-500.0,0.00024383,2]
[355927471,1741716726578,-500.0,0.00024383,2]
[355927472,1741716726587,-500.0,0.00024383,2]
[355927473,1741716726597,-501.99,0.00024383,2]
[355927474,1741716726606,-1321.15,0.00024383,2]
[355927475,1741716726615,-500.0,0.00024383,2]
[355927476,1741716726625,-500.0,0.00024383,2]
[355927477,1741716726634,-500.0,0.00024383,2]
[355927478,1741716726644,-500.0,0.00024383,2]
[355927479,1741716726653,-1620.73,0.00024383,5]
[355927480,1741716726662,-1350.19,0.00024383,2]
[355927481,1741716726672,-500.0,0.00024383,2]
[355927482,1741716726682,-500.0,0.00024383,2]
[355927483,1741716726691,-1488.21,0.00024383,2]
[355927484,1741716726701,-500.0,0.00024383,2]
[355927485,1741716726710,-500.0,0.00024383,2]
[355927486,1741716726720,-500.0,0.00024383,2]
[355927487,1741716726729,-500.0,0.00024383,2]
[355927488,1741716726738,-500.0,0.00024383,2]
[355927489,1741716726747,-1803.96,0.00024383,2]
[355927490,1741716726756,-521.40693835,0.00024383,2]
[355927491,1741716726766,-500.0,0.00024383,2]
[355927492,1741716726776,-500.0,0.00024383,2]
[355927493,1741716726785,-500.0,0.00024383,2]
[355927494,1741716726795,-500.0,0.00024383,2]
[355927495,1741716726805,-505.9624212,0.00024383,2]
[355927496,1741716726815,-500.0,0.00024383,2]
[355927497,1741716726830,-657.25,0.00024383,2]
[355927498,1741716726840,-788.64,0.00024383,2]
[355927499,1741716726849,-857.78,0.00024383,2]
[355927500,1741716726859,-500.0,0.00024383,2]
[355927501,1741716726869,-2304.11,0.00024383,2]
[355927502,1741716726879,-500.0,0.00024383,2]
[355927503,1741716726890,-2654.41,0.00024383,2]
[355927504,1741716726901,-912.54,0.00024383,2]
[355927505,1741716726912,-3573.38,0.00024383,2]
[355927506,1741716726922,-627.59,0.00024383,2]
[355927507,1741716726932,-1747.6,0.00024383,2]
[355927508,1741716726941,-500.0,0.00024383,2]
[355927509,1741716726951,-574.19,0.00024383,2]
[355927510,1741716726960,-500.0,0.00024383,2]
[355927511,1741716726970,-500.0,0.00024383,2]
[355927512,1741716726980,-617.45,0.00024383,2]
[355927513,1741716726990,-500.0,0.00024383,2]
[355927514,1741716726999,-500.0,0.00024383,2]
[355927515,1741716727009,-512.1,0.00024383,2]
[355927516,1741716727018,-500.0,0.00024383,2]
[355927517,1741716727028,-500.0,0.00024383,2]
[355927518,1741716727038,-1624.83,0.00024383,2]
[355927519,1741716727048,-500.0,0.00024383,2]
[355927520,1741716727064,-1388.31,0.00024383,2]
[355927521,1741716727076,-500.0,0.00024383,2]
[355927522,1741716727086,-500.0,0.00024383,2]
[355927523,1741716727097,-500.0,0.00024383,2]
[355927524,1741716727107,-500.0,0.00024383,2]
[355927525,1741716727116,-2527.61,0.00024383,2]
[355927526,1741716727127,-474.14,0.00024383,2]
[355927527,1741716727137,-1505.11,0.00024383,2]
[355927528,1741716727147,-1159.19,0.00024383,2]
[355927529,1741716727157,-500.0,0.00024383,2]
[355927530,1741716727167,-500.0,0.00024383,2]
[355927531,1741716727177,-500.0,0.00024383,2]
[355927532,1741716727187,-500.0,0.00024383,2]
[355927533,1741716727197,-1771.79,0.00024383,2]
[355927534,1741716727207,-2594.12,0.00024383,2]
[355927535,1741716727216,-500.0,0.00024383,2]
[355927536,1741716727226,-564.98,0.00024383,2]
[355927537,1741716727236,-741.15,0.00024383,2]
[355927538,1741716727246,-514.01,0.00024383,2]
[355927539,1741716727256,-500.0,0.00024383,2]
[355927540,1741716727265,-500.0,0.00024383,2]
[355927541,1741716727275,-500.0,0.00024383,2]
[355927542,1741716727285,-529.21616675,0.00024383,2]
[355927543,1741716727295,-773.02,0.00024383,2]
[355927544,1741716727305,-616.23555912,0.00024383,2]
[355927545,1741716727316,-783.0,0.00024383,2]
[355927546,1741716727329,-500.0,0.00024383,2]
[355927547,1741716727339,-500.0,0.00024383,2]
[355927548,1741716727348,-500.0,0.00024383,2]
[355927549,1741716727357,-1890.4,0.00024383,2]
[355927550,1741716727367,-500.0,0.00024383,2]
[355927551,1741716727376,-500.0,0.00024383,2]
[355927552,1741716727386,-669.95,0.00024383,2]
[355927553,1741716727396,-500.0,0.00024383,2]
[355927554,1741716727405,-647.88,0.00024383,2]
[355927555,1741716727414,-1680.4,0.00024383,2]
[355927556,1741716727424,-500.0,0.00024383,2]
[355927557,1741716727434,-1121.75,0.00024383,2]
[355927558,1741716727444,-523.3,0.00024383,2]
[355927559,1741716727453,-295.61159738,0.00024383,2]
[355927560,1741716727463,-500.0,0.00024383,2]
[355927561,1741716727472,-647.83,0.00024383,2]
[355927562,1741716727481,-1614.37,0.00024383,2]
[355927563,1741716727491,-500.0,0.00024383,2]
[355927564,1741716727500,-500.0,0.00024383,2]
[355927565,1741716727509,-607.02,0.00024383,2]
[355927566,1741716727519,-800.76,0.00024383,2]
[355927567,1741716727528,-1280.44,0.00024383,2]
[355927568,1741716727537,-500.0,0.00024383,2]
[355927569,1741716727547,-500.0,0.00024383,2]
[355927570,1741716727556,-555.5,0.00024383,2]
[355927571,1741716727566,-500.0,0.00024383,2]
[355927572,1741716727578,-500.0,0.00024383,2]
[355927573,1741716727588,-500.0,0.00024383,2]
[355927574,1741716727597,-721.26,0.00024383,2]
[355927575,1741716727606,-1615.29,0.00024383,2]
[355927576,1741716727616,-500.0,0.00024383,2]
[355927577,1741716727626,-500.0,0.00024383,2]
[355927578,1741716727644,-500.0,0.00024383,2]
[355927579,1741716727655,-500.0,0.00024383,2]
[355927580,1741716727664,-500.0,0.00024383,2]
[355927581,1741716727673,-1063.8,0.00024383,2]
[355927582,1741716727682,-993.16,0.00024383,2]
[355927583,1741716727692,-500.0,0.00024383,2]
[355927584,1741716727701,-2377.08,0.00024383,2]
[355927585,1741716727710,-500.0,0.00024383,2]
[355927586,1741716727720,-500.0,0.00024383,2]
[355927587,1741716727730,-478.78189763,0.00024383,2]
[355927588,1741716727739,-1689.79,0.00024383,2]
[355927589,1741716727749,-1182.74,0.00024383,2]
[355927590,1741716727758,-519.08887907,0.00024383,2]
[355927591,1741716727767,-500.0,0.00024383,2]
[355927592,1741716727778,-500.0,0.00024383,2]
[355927593,1741716727789,-2662.49,0.00024383,2]
[355927594,1741716727799,-1204.27,0.00024383,2]
[355927595,1741716727809,-760.44,0.00024383,2]
[355927596,1741716727818,-717.54,0.00024383,2]
[355927597,1741716727830,-500.0,0.00024383,2]
[355927598,1741716727841,-500.0,0.00024383,2]
[355927599,1741716727851,-1467.71,0.00024383,2]
[355927600,1741716727862,-500.0,0.00024383,2]
[355927601,1741716727872,-2537.49,0.00024383,2]
[355927602,1741716727882,-500.0,0.00024383,2]
[355927603,1741716727892,-500.0,0.00024383,2]
[355927604,1741716727901,-500.0,0.00024383,2]
[355927605,1741716727911,-1701.43,0.00024383,2]
[355927606,1741716727920,-500.0,0.00024383,2]
[355927607,1741716727930,-500.0,0.00024383,2]
[355927608,1741716727940,-1155.99,0.00024383,2]
[355927609,1741716727951,-500.0,0.00024383,2]
[355927610,1741716727960,-623.52580204,0.00024383,2]
[355927611,1741716727970,-644.13,0.00024383,2]
[355927612,1741716727980,-500.0,0.00024383,2]
[355927613,1741716727990,-834.21,0.00024383,2]
[355927614,1741716728001,-798.51,0.00024383,2]
[355927615,1741716728010,-500.0,0.00024383,2]
[355927616,1741716728021,-500.0,0.00024383,2]
[355927617,1741716728030,-908.5,0.00024383,2]
[355927618,1741716728040,-500.0,0.00024383,2]
[355927619,1741716728052,-500.0,0.00024383,2]
[355927620,1741716728061,-572.05,0.00024383,2]
[355927621,1741716728072,-500.0,0.00024383,2]
[355927622,1741716728082,-1740.21,0.00024383,2]
[355927623,1741716728093,-1291.37,0.00024383,2]
[355927624,1741716728102,-682.17,0.00024383,2]
[355927625,1741716728112,-500.0,0.00024383,2]
[355927626,1741716728121,-1766.21,0.00024383,2]
[355927627,1741716728133,-893.83,0.00024383,2]
[355927628,1741716728142,-500.0,0.00024383,2]
[355927629,1741716728151,-500.0,0.00024383,2]
[355927630,1741716728161,-500.0,0.00024383,2]
[355927631,1741716728171,-500.0,0.00024383,2]
[355927632,1741716728181,-500.0,0.00024383,2]
[355927633,1741716728190,-2321.3,0.00024383,2]
[355927634,1741716728200,-500.0,0.00024383,2]
[355927635,1741716728211,-500.0,0.00024383,2]
[355927636,1741716728220,-1549.95,0.00024383,2]
[355927637,1741716728230,-2086.15,0.00024383,2]
[355927638,1741716728239,-500.0,0.00024383,2]
[355927639,1741716728249,-500.0,0.00024383,2]
[355927640,1741716728259,-1804.17,0.00024383,2]
[355927641,1741716728268,-931.4,0.00024383,2]
[355927642,1741716728277,-500.0,0.00024383,2]
[355927643,1741716728287,-1203.57,0.00024383,2]
[355927644,1741716728297,-936.91,0.00024383,2]
[355927645,1741716728306,-1955.81,0.00024383,2]
[355927646,1741716728315,-1167.97,0.00024383,2]
[355927647,1741716728327,-190.98191631,0.00024383,2]
[355927648,1741716728337,-500.0,0.00024383,2]
[355927649,1741716728346,-500.0,0.00024383,2]
[355927650,1741716728356,-500.0,0.00024383,2]
[355927651,1741716728367,-3441.63,0.00024383,2]
[355927652,1741716728378,-500.0,0.00024383,2]
[355927653,1741716728387,-500.0,0.00024383,2]
[355927654,1741716728397,-500.0,0.00024383,2]
[355927655,1741716728406,-1028.23,0.00024383,2]
[355927656,1741716728416,-500.0,0.00024383,2]
[355927657,1741716728426,-1565.71,0.00024383,2]
[355927658,1741716728436,-1264.65,0.00024383,2]
[355927659,1741716728445,-500.0,0.00024383,2]
[355927660,1741716728455,-500.0,0.00024383,2]
[355927661,1741716728464,-500.0,0.00024383,2]
[355927662,1741716728474,-1803.2,0.00024383,2]
[355927663,1741716728484,-1625.43,0.00024383,2]
[355927664,1741716728493,-500.0,0.00024383,2]
[355927665,1741716728503,-500.0,0.00024383,2]
[355927666,1741716728512,-500.0,0.00024383,2]
[355927667,1741716728522,-528.57242738,0.00024383,2]
[355927668,1741716728532,-500.0,0.00024383,2]
[355927669,1741716728542,-1045.75,0.00024383,2]
[355927670,1741716728552,-500.0,0.00024383,2]
[355927671,1741716728562,-791.16,0.00024383,2]
[355927672,1741716728572,-500.0,0.00024383,2]
[355927673,1741716728582,-500.0,0.00024383,2]
[355927674,1741716728592,-500.0,0.00024383,2]
[355927675,1741716728602,-500.0,0.00024383,2]
[355927676,1741716728612,-500.0,0.00024383,2]
[355927677,1741716728622,-500.0,0.00024383,2]
[355927678,1741716728632,-500.0,0.00024383,2]
[355927679,1741716728642,-500.0,0.00024383,2]
[355927680,1741716728652,-500.0,0.00024383,2]
[355927681,1741716728662,-500.0,0.00024383,2]
[355927682,1741716728672,-258.53344888,0.00024383,2]
[355927683,1741716728682,-500.0,0.00024383,2]
[355927684,1741716728692,-500.0,0.00024383,2]
[355927685,1741716728703,-500.0,0.00024383,2]
[355927686,1741716728712,-500.0,0.00024383,2]
[355927687,1741716728721,-500.0,0.00024383,2]
[355927688,1741716728731,-1070.64,0.00024383,2]
[355927689,1741716728741,-939.85,0.00024383,2]
[355927690,1741716728752,-500.0,0.00024383,2]
[355927691,1741716728762,-500.0,0.00024383,2]
[355927692,1741716728772,-700.06,0.00024383,2]
[355927693,1741716728782,-500.0,0.00024383,2]
[355927694,1741716728792,-500.0,0.00024383,2]
[355927695,1741716728801,-500.0,0.00024383,2]
[355927696,1741716728811,-500.0,0.00024383,2]
[355927697,1741716728820,-500.0,0.00024383,2]
[355927698,1741716728830,-914.13,0.00024383,2]
[355927699,1741716728839,-1543.09,0.00024383,2]
[355927700,1741716728848,-1087.78,0.00024383,2]
[355927701,1741716728858,-500.0,0.00024383,2]
[355927702,1741716728867,-446.16938458,0.00024383,2]
[355927703,1741716728877,-500.0,0.00024383,2]
[355927704,1741716728888,-3025.57,0.00024383,2]
[355927705,1741716728898,-525.06,0.00024383,2]
[355927706,1741716728908,-500.0,0.00024383,2]
[355927707,1741716728918,-500.0,0.00024383,2]
[355927708,1741716728928,-1013.34,0.00024383,2]
[355927709,1741716728938,-500.0,0.00024383,2]
[355927710,1741716728948,-500.0,0.00024383,2]
[355927711,1741716728958,-500.0,0.00024383,2]
[355927712,1741716728968,-2686.03,0.00024383,2]
[355927713,1741716728978,-500.0,0.00024383,2]
[355927714,1741716728988,-1595.33,0.00024383,2]
[355927715,1741716728998,-497.16,0.00024383,2]
[355927716,1741716729008,-500.0,0.00024383,2]
[355927717,1741716729018,-500.0,0.00024383,2]
[355927718,1741716729028,-2451.3,0.00024383,2]
[355927719,1741716729038,-1447.92,0.00024383,2]
[355927720,1741716729049,-500.0,0.00024383,2]
[355927721,1741716729062,-2298.88,0.00024383,2]
[355927722,1741716729073,-1572.03,0.00024383,2]
[355927723,1741716729084,-500.0,0.00024383,2]
[355927724,1741716729095,-500.0,0.00024383,2]
[355927725,1741716729105,-2808.13,0.00024383,2]
[355927726,1741716729115,-500.0,0.00024383,2]
[355927727,1741716729126,-200.0,0.00024383,2]
[355927728,1741716729138,-2473.59,0.00024383,2]
[355927729,1741716729149,-500.0,0.00024383,2]
[355927730,1741716729160,-500.0,0.00024383,2]
[355927731,1741716729170,-500.0,0.00024383,2]
[355927732,1741716729182,-500.0,0.00024383,2]
[355927733,1741716729193,-500.0,0.00024383,2]
[355927734,1741716729205,-500.0,0.00024383,2]
[355927735,1741716729215,-537.14068873,0.00024383,2]
[355927736,1741716729226,-780.35,0.00024383,2]
[355927737,1741716729237,-2284.96,0.00024383,2]
[355927738,1741716729247,-1184.9,0.00024383,2]
[355927739,1741716729258,-548.03183093,0.00024383,2]
[355927740,1741716729268,-1614.31,0.00024383,2]
[355927741,1741716729278,-500.0,0.00024383,2]
[355927742,1741716729289,-896.04,0.00024383,2]
[355927743,1741716729299,-500.0,0.00024383,2]
[355927744,1741716729310,-825.42,0.00024383,2]
[355927745,1741716729320,-612.17,0.00024383,2]
[355927746,1741716729338,-500.0,0.00024383,2]
[355927747,1741716729349,-500.0,0.00024383,2]
[355927748,1741716729360,-1857.45,0.00024383,2]
[355927749,1741716729370,-500.0,0.00024383,2]
[355927750,1741716729381,-1429.9,0.00024383,2]
[355927751,1741716729391,-9645.49,0.00024383,2]
[355927752,1741716729401,-500.0,0.00024383,2]
[355927753,1741716729412,-500.0,0.00024383,2]
[355927754,1741716729423,-899.98,0.00024383,2]
[355927755,1741716729434,-500.0,0.00024383,2]
[355927756,1741716729445,-7102.33,0.00024383,2]
[355927757,1741716729456,-500.0,0.00024383,2]
[355927758,1741716729466,-500.0,0.00024383,2]
[355927759,1741716729477,-500.0,0.00024383,2]
[355927760,1741716729488,-11976.4,0.00024383,2]
[355927761,1741716729499,-1284.87,0.00024383,2]
[355927762,1741716729509,-855.17,0.00024383,2]
[355927763,1741716729520,-500.0,0.00024383,2]
[355927764,1741716729531,-342.03948507,0.00024383,2]
[355927765,1741716729541,-500.0,0.00024383,2]
[355927766,1741716729551,-500.0,0.00024383,2]
[355927767,1741716729562,-23367.44,0.00024383,2]
[355927768,1741716729575,-500.0,0.00024383,2]
[355927769,1741716729585,-500.0,0.00024383,2]
[355927770,1741716729595,-500.0,0.00024383,2]
[355927771,1741716729606,-669.93,0.00024383,2]
[355927772,1741716729621,-500.0,0.00024383,2]
[355927773,1741716729633,-500.0,0.00024383,2]
[355927774,1741716729642,-500.0,0.00024383,2]
[355927775,1741716729653,-1907.14,0.00024383,2]
[355927776,1741716729663,-500.0,0.00024383,2]
[355927777,1741716729674,-500.0,0.00024383,2]
[355927778,1741716729684,-2813.74,0.00024383,2]
[355927779,1741716729694,-500.0,0.00024383,2]
[355927780,1741716729705,-562.82,0.00024383,2]
[355927781,1741716729715,-500.0,0.00024383,2]
[355927782,1741716729727,-1222.25,0.00024383,2]
[355927783,1741716729738,-514.05,0.00024383,2]
[355927784,1741716729749,-2182.16,0.00024383,2]
[355927785,1741716729760,-500.0,0.00024383,2]
[355927786,1741716729771,-573.01,0.00024383,2]
[355927787,1741716730109,-4470.27,0.00024383,2]
[355927788,1741716730129,-1342.73,0.00024383,2]
[355927789,1741716730140,-914.18,0.00024383,2]
[355927790,1741716730150,-500.0,0.00024383,2]